lending/lending_fUSD_20250131
["ID","MTS","AMOUNT","RATE_DAILY","PERIOD"]
[351070079,1738324241119,-500.0,0.00016438,2]
[351070080,1738324241128,-722.66,0.00016438,2]
[351070081,1738324241137,-534.78369372,0.00016438,2]
[351070082,1738324241146,-500.0,0.00016438,2]
[351070083,1738324241155,-500.0,0.00016438,2]
[351070084,1738324241166,-500.0,0.00016438,2]
[351070085,1738324241176,-745.68,0.00016438,2]
[351070086,1738324241185,-530.28101179,0.00016438,2]
[351070087,1738324241194,-500.0,0.00016438,2]
[351070088,1738324241203,-844.57,0.00016438,2]
[351070089,1738324241212,-622.82,0.00016438,2]
[351070090,1738324241222,-1809.29,0.00016438,2]
[351070091,1738324241231,-516.35,0.00016438,2]
[351070092,1738324241241,-500.0,0.00016438,2]
[351070093,1738324241250,-924.62,0.00016438,2]
[351070094,1738324241259,-1135.67,0.00016438,2]
[351070095,1738324241268,-500.0,0.00016438,2]
[351070096,1738324241277,-500.0,0.00016438,2]
[351070097,1738324241287,-500.0,0.00016438,2]
[351070098,1738324241296,-500.0,0.00016438,2]
[351070099,1738324241305,-1008.93,0.00016438,2]
[351070100,1738324241314,-500.0,0.00016438,2]
[351070101,1738324241324,-500.0,0.00016438,2]
[351070102,1738324241333,-2056.77,0.00016438,2]
[351070103,1738324241343,-522.20827562,0.00016438,2]
[351070104,1738324241351,-1566.7,0.00016438,2]
[351070105,1738324241360,-1749.3,0.00016438,2]
[351070106,1738324241370,-500.0,0.00016438,2]
[351070107,1738324241379,-500.0,0.00016438,2]
[351070108,1738324241388,-500.0,0.00016438,2]
[351070109,1738324241397,-500.0,0.00016438,2]
[351070110,1738324241406,-500.0,0.00016438,2]
[351070111,1738324241415,-1197.8,0.00016438,2]
[351070112,1738324241425,-803.71,0.00016438,2]
[351070113,1738324241435,-500.0,0.00016438,2]
[351070114,1738324241444,-920.16,0.00016438,2]
[351070115,1738324241456,-500.0,0.00016438,2]
[351070116,1738324241465,-500.0,0.00016438,2]
[351070117,1738324241474,-504.10688771,0.00016438,2]
[351070118,1738324241483,-500.0,0.00016438,2]
[351070119,1738324241494,-500.0,0.00016438,2]
[351070120,1738324241503,-500.0,0.00016438,2]
[351070121,1738324241512,-500.0,0.00016438,2]
[351070122,1738324241521,-1078.45,0.00016438,2]
[351070123,1738324241531,-960.26,0.00016438,2]
[351070124,1738324241540,-500.0,0.00016438,2]
[351070125,1738324241549,-502.6804668,0.00016438,2]
[351070126,1738324241558,-868.3,0.00016438,2]
[351070127,1738324241567,-1038.11,0.00016438,2]
[351070128,1738324241576,-500.0,0.00016438,2]
[351070129,1738324241585,-512.31,0.00016438,2]
[351070130,1738324241594,-1860.78,0.00016438,2]
[351070131,1738324241603,-2229.07,0.00016438,2]
[351070132,1738324241612,-625.75,0.00016438,2]
[351070133,1738324241621,-500.0,0.00016438,2]
[351070134,1738324241629,-500.0,0.00016438,2]
[351070135,1738324241638,-500.0,0.00016438,2]
[351070136,1738324241647,-587.49,0.00016438,2]
[351070137,1738324241656,-500.0,0.00016438,2]
[351070138,1738324241665,-500.0,0.00016438,2]
[351070139,1738324241676,-500.0,0.00016438,2]
[351070140,1738324241685,-500.0,0.00016438,2]
[351070141,1738324241694,-500.0,0.00016438,2]
[351070142,1738324241703,-500.0,0.00016438,2]
[351070143,1738324241712,-500.0,0.00016438,2]
[351070144,1738324241721,-500.0,0.00016438,2]
[351070145,1738324241730,-500.0,0.00016438,2]
[351070146,1738324241739,-702.08,0.00016438,2]
[351070147,1738324241748,-500.0,0.00016438,2]
[351070148,1738324241758,-902.1,0.00016438,2]
[351070149,1738324241768,-500.0,0.00016438,2]
[351070150,1738324241779,-1092.24,0.00016438,2]
[351070151,1738324241788,-500.0,0.00016438,2]
[351070152,1738324241797,-500.0,0.00016438,2]
[351070153,1738324241807,-1500.41,0.00016438,2]
[351070154,1738324241816,-500.0,0.00016438,2]
[351070155,1738324241826,-1310.52,0.00016438,2]
[351070156,1738324241835,-500.0,0.00016438,2]
[351070157,1738324241844,-500.0,0.00016438,2]
[351070158,1738324241853,-500.0,0.00016438,2]
[351070159,1738324241863,-551.18,0.00016438,2]
[351070160,1738324241874,-500.0,0.00016438,2]
[351070161,1738324241883,-306.46050938,0.00016438,2]
[351070162,1738324241892,-1011.5,0.00016438,2]
[351070163,1738324241902,-916.25,0.00016438,2]
[351070164,1738324241912,-500.0,0.00016438,2]
[351070165,1738324241923,-500.0,0.00016438,2]
[351070166,1738324241933,-500.0,0.00016438,2]
[351070167,1738324241943,-505.34634315,0.00016438,2]
[351070168,1738324241952,-500.0,0.00016438,2]
[351070169,1738324241962,-1126.48,0.00016438,2]
[351070170,1738324241971,-693.05,0.00016438,2]
[351070171,1738324241981,-500.0,0.00016438,2]
[351070172,1738324241991,-1804.91,0.00016438,2]
[351070173,1738324242001,-891.26,0.00016438,2]
[351070174,1738324242011,-511.97822717,0.00016438,2]
[351070175,1738324242020,-500.0,0.00016438,2]
[351070176,1738324242030,-510.91,0.00016438,2]
[351070177,1738324242040,-500.0,0.00016438,2]
[351070178,1738324242049,-837.12,0.00016438,2]
[351070179,1738324242058,-500.0,0.00016438,2]
[351070180,1738324242068,-623.19178253,0.00016438,2]
[351070181,1738324242077,-500.0,0.00016438,2]
[351070182,1738324242087,-1280.98,0.00016438,2]
[351070183,1738324242096,-810.56,0.00016438,2]
[351070184,1738324242106,-2176.78,0.00016438,2]
[351070185,1738324242115,-1028.63,0.00016438,2]
[351070186,1738324242125,-500.0,0.00016438,2]
[351070187,1738324242134,-500.0,0.00016438,2]
[351070188,1738324242144,-1303.52,0.00016438,2]
[351070189,1738324242153,-500.0,0.00016438,2]
[351070190,1738324242163,-690.75,0.00016438,2]
[351070191,1738324242173,-1122.1,0.00016438,2]
[351070192,1738324242183,-500.0,0.00016438,2]
[351070193,1738324242192,-500.0,0.00016438,2]
[351070194,1738324242203,-500.0,0.00016438,2]
[351070195,1738324242212,-500.0,0.00016438,2]
[351070196,1738324242221,-829.61,0.00016438,2]
[351070197,1738324242231,-620.0,0.00016438,2]
[351070198,1738324242240,-500.0,0.00016438,2]
[351070199,1738324242250,-500.0,0.00016438,2]
[351070200,1738324242259,-500.0,0.00016438,2]
[351070201,1738324242269,-500.0,0.00016438,2]
[351070202,1738324242278,-1681.91,0.00016438,2]
[351070203,1738324242288,-500.0,0.00016438,2]
[351070204,1738324242298,-1061.98,0.00016438,2]
[351070205,1738324242307,-2007.82,0.00016438,2]
[351070206,1738324242316,-726.56,0.00016438,2]
[351070207,1738324242326,-500.0,0.00016438,2]
[351070208,1738324242335,-518.5,0.00016438,2]
[351070209,1738324242344,-500.0,0.00016438,2]
[351070210,1738324242354,-500.0,0.00016438,2]
[351070211,1738324242363,-500.0,0.00016438,2]
[351070212,1738324242375,-500.0,0.00016438,2]
[351070213,1738324242384,-799.55,0.00016438,2]
[351070214,1738324242393,-500.0,0.00016438,2]
[351070215,1738324242403,-5000.0,0.00016438,2]
[351070216,1738324242413,-500.0,0.00016438,2]
[351070217,1738324242424,-511.91,0.00016438,2]
[351070218,1738324242433,-500.0,0.00016438,2]
[351070219,1738324242443,-676.71,0.00016438,2]
[351070220,1738324242456,-500.0,0.00016438,2]
[351070221,1738324242467,-500.0,0.00016438,2]
[351070222,1738324242476,-500.0,0.00016438,2]
[351070223,1738324242486,-500.0,0.00016438,2]
[351070224,1738324242497,-918.95,0.00016438,2]
[351070225,1738324242506,-500.0,0.00016438,2]
[351070226,1738324242516,-500.0,0.00016438,2]
[351070227,1738324242526,-500.0,0.00016438,2]
[351070228,1738324242536,-500.0,0.00016438,2]
[351070229,1738324242546,-500.0,0.00016438,2]
[351070230,1738324242555,-716.74,0.00016438,2]
[351070231,1738324242564,-500.0,0.00016438,2]
[351070232,1738324242574,-500.0,0.00016438,2]
[351070233,1738324242583,-599.29,0.00016438,2]
[351070234,1738324242593,-500.0,0.00016438,2]
[351070235,1738324242602,-500.0,0.00016438,2]
[351070236,1738324242612,-1428.42,0.00016438,2]
[351070237,1738324242622,-500.0,0.00016438,2]
[351070238,1738324242632,-1061.29,0.00016438,2]
[351070239,1738324242642,-500.0,0.00016438,2]
[351070240,1738324242651,-500.0,0.00016438,2]
[351070241,1738324242661,-848.88,0.00016438,2]
[351070242,1738324242672,-500.0,0.00016438,2]
[351070244,1738324242681,-993.25,0.00016438,2]
[351070245,1738324242690,-500.0,0.00016438,2]
[351070246,1738324242700,-500.0,0.00016438,2]
[351070247,1738324242709,-500.0,0.00016438,2]
[351070248,1738324242718,-500.0,0.00016438,2]
[351070249,1738324242728,-884.9,0.00016438,2]
[351070250,1738324242737,-500.0,0.00016438,2]
[351070251,1738324242747,-500.0,0.00016438,2]
[351070252,1738324242756,-500.0,0.00016438,2]
[351070253,1738324242766,-765.04,0.00016438,2]
[351070254,1738324242775,-1320.85,0.00016438,2]
[351070255,1738324242784,-500.0,0.00016438,2]
[351070258,1738324242793,-512.57280936,0.00016438,2]
[351070259,1738324242804,-500.0,0.00016438,2]
[351070260,1738324242813,-500.0,0.00016438,2]
[351070261,1738324242823,-500.0,0.00016438,2]
[351070262,1738324242832,-500.0,0.00016438,2]
[351070263,1738324242842,-593.46,0.00016438,2]
[351070265,1738324242852,-500.0,0.00016438,2]
[351070267,1738324242861,-500.0,0.00016438,2]
[351070268,1738324242871,-500.0,0.00016438,2]
[351070269,1738324242880,-152.249355,0.00016438,2]
[351070270,1738324242890,-787.26,0.00016438,2]
[351070271,1738324242899,-500.0,0.00016438,2]
[351070273,1738324242908,-500.0,0.00016438,2]
[351070275,1738324242917,-500.0,0.00016438,2]
[351070277,1738324242929,-500.0,0.00016438,2]
[351070279,1738324242938,-517.63,0.00016438,2]
[351070280,1738324242947,-769.42,0.00016438,2]
[351070282,1738324242958,-500.0,0.00016438,2]
[351070285,1738324242968,-500.0,0.00016438,2]
[351070287,1738324242977,-500.0,0.00016438,2]
[351070289,1738324242987,-500.0,0.00016438,2]
[351070290,1738324242998,-1125.66,0.00016438,2]
[351070292,1738324243007,-500.0,0.00016438,2]
[351070294,1738324243017,-500.0,0.00016438,2]
[351070296,1738324243026,-500.0,0.00016438,2]
[351070298,1738324243035,-500.0,0.00016438,2]
[351070300,1738324243045,-500.0,0.00016438,2]
[351070302,1738324243054,-504.75295874,0.00016438,2]
[351070304,1738324243063,-500.0,0.00016438,2]
[351070305,1738324243072,-500.0,0.00016438,2]
[351070306,1738324243081,-1433.15,0.00016438,2]
[351070307,1738324243090,-500.0,0.00016438,2]
[351070308,1738324243099,-500.0,0.00016438,2]
[351070309,1738324243109,-500.0,0.00016438,2]
[351070310,1738324243118,-867.02,0.00016438,2]
[351070311,1738324243127,-500.0,0.00016438,2]
[351070312,1738324243136,-500.0,0.00016438,2]
[351070313,1738324243145,-500.0,0.00016438,2]
[351070314,1738324243154,-500.0,0.00016438,2]
[351070315,1738324243163,-719.79,0.00016438,2]
[351070316,1738324243172,-1042.52,0.00016438,2]
[351070317,1738324243181,-500.0,0.00016438,2]
[351070318,1738324243191,-500.0,0.00016438,2]
[351070319,1738324243200,-997.01,0.00016438,2]
[351070320,1738324243209,-500.0,0.00016438,2]
[351070321,1738324243218,-888.43,0.00016438,2]
[351070322,1738324243227,-500.0,0.00016438,2]
[351070323,1738324243237,-500.0,0.00016438,2]
[351070324,1738324243246,-500.0,0.00016438,2]
[351070325,1738324243255,-500.0,0.00016438,2]
[351070326,1738324243264,-500.0,0.00016438,2]
[351070327,1738324243273,-500.0,0.00016438,2]
[351070328,1738324243283,-500.0,0.00016438,2]
[351070329,1738324243292,-500.0,0.00016438,2]
[351070330,1738324243301,-500.0,0.00016438,2]
[351070331,1738324243310,-500.0,0.00016438,2]
[351070332,1738324243319,-500.0,0.00016438,2]
[351070333,1738324243328,-725.69,0.00016438,2]
[351070334,1738324243338,-500.0,0.00016438,2]
[351070335,1738324243348,-503.60435473,0.00016438,2]
[351070336,1738324243357,-500.0,0.00016438,2]
[351070337,1738324243366,-571.64,0.00016438,2]
[351070343,1738324243576,-591.82459442,0.00016438,2]
[351070344,1738324243586,-500.0,0.00016438,2]
[351070345,1738324243595,-1332.95,0.00016438,2]
[351070346,1738324243605,-500.0,0.00016438,2]
[351070347,1738324243615,-964.72,0.00016438,2]
[351070348,1738324243624,-500.0,0.00016438,2]
[351070349,1738324243634,-500.0,0.00016438,2]
[351070350,1738324243643,-500.0,0.00016438,2]
[351070351,1738324243652,-701.0,0.00016438,2]
[351070352,1738324243662,-500.0,0.00016438,2]
[351070353,1738324243671,-500.0,0.00016438,2]
[351070354,1738324243681,-500.0,0.00016438,2]
[351070355,1738324243690,-500.0,0.00016438,2]
[351070356,1738324243699,-500.0,0.00016438,2]
[351070357,1738324243709,-500.0,0.00016438,2]
[351070358,1738324243718,-765.32,0.00016438,2]
[351070359,1738324243729,-615.17,0.00016438,2]
[351070360,1738324243738,-576.92,0.00016438,2]
[351070361,1738324243747,-535.49,0.00016438,2]
[351070362,1738324243757,-627.28,0.00016438,2]
[351070363,1738324243766,-500.0,0.00016438,2]
[351070364,1738324243775,-500.0,0.00016438,2]
[351070365,1738324243787,-547.86,0.00016438,2]
[351070366,1738324243796,-547.86,0.00016438,2]
[351070367,1738324243806,-500.0,0.00016438,2]
[351070368,1738324243815,-547.86,0.00016438,2]
[351070369,1738324243824,-500.0,0.00016438,2]
[351070370,1738324243834,-547.86,0.00016438,2]
[351070371,1738324243844,-659.44,0.00016438,2]
[351070372,1738324243853,-547.86,0.00016438,2]
[351070373,1738324243862,-547.86,0.00016438,2]
[351070374,1738324243872,-547.86,0.00016438,2]
[351070375,1738324243883,-1202.37,0.00016438,2]
[351070376,1738324243893,-547.86,0.00016438,2]
[351070377,1738324243903,-547.86,0.00016438,2]
[351070378,1738324243912,-500.0,0.00016438,2]
[351070379,1738324243922,-547.86,0.00016438,2]
[351070380,1738324243931,-547.86,0.00016438,2]
[351070381,1738324243941,-547.86,0.00016438,2]
[351070382,1738324243950,-547.86,0.00016438,2]
[351070383,1738324243960,-547.86,0.00016438,2]
[351070384,1738324243970,-547.86,0.00016438,2]
[351070385,1738324243979,-500.0,0.00016438,2]
[351070386,1738324243989,-500.0,0.00016438,2]
[351070387,1738324243999,-413.25456585,0.00016438,2]
[351070388,1738324244008,-711.34,0.00016438,2]
[351070389,1738324244018,-500.0,0.00016438,2]
[351070390,1738324244027,-1980.92,0.00016438,2]
[351070391,1738324244037,-504.43781728,0.00016438,2]
[351070392,1738324244046,-600.25,0.00016438,2]
[351070393,1738324244055,-500.0,0.00016438,2]
[351070394,1738324244065,-500.0,0.00016438,2]
[351070395,1738324244074,-1237.27,0.00016438,2]
[351070396,1738324244083,-1349.79,0.00016438,2]
[351070397,1738324244093,-1154.79,0.00016438,2]
[351070398,1738324244103,-1640.4,0.00016438,2]
[351070399,1738324244114,-500.0,0.00016438,2]
[351070400,1738324244125,-500.0,0.00016438,2]
[351070401,1738324244134,-500.0,0.00016438,2]
[351070402,1738324244144,-1030.03,0.00016438,2]
[351070403,1738324244154,-500.0,0.00016438,2]
[351070404,1738324244164,-500.0,0.00016438,2]
[351070405,1738324244174,-500.0,0.00016438,2]
[351070406,1738324244184,-500.0,0.00016438,2]
[351070407,1738324244193,-500.0,0.00016438,2]
[351070408,1738324244203,-5467.92,0.00016438,2]
[351070409,1738324244214,-500.0,0.00016438,2]
[351070410,1738324244224,-896.49,0.00016438,2]
[351070411,1738324244233,-500.0,0.00016438,2]
[351070412,1738324244243,-500.0,0.00016438,2]
[351070413,1738324244254,-500.0,0.00016438,2]
[351070414,1738324244264,-500.0,0.00016438,2]
[351070415,1738324244273,-1077.54,0.00016438,2]
[351070416,1738324244283,-500.0,0.00016438,2]
[351070417,1738324244293,-723.14,0.00016438,2]
[351070418,1738324244302,-1255.47,0.00016438,2]
[351070419,1738324244311,-500.0,0.00016438,2]
[351070420,1738324244320,-500.0,0.00016438,2]
[351070421,1738324244330,-650.38,0.00016438,2]
[351070422,1738324244339,-4908.05,0.00016438,2]
[351070423,1738324244349,-8946.44,0.00016438,2]
[351070424,1738324244359,-2502.36,0.00016438,2]
[351070425,1738324244369,-13742.67,0.00016438,2]
[351070426,1738324244378,-500.0,0.00016438,2]
[351070427,1738324244386,-1612.26,0.00016438,2]
[351070428,1738324244395,-500.0,0.00016438,2]
[351070429,1738324244405,-689.81,0.00016438,2]
[351070430,1738324244414,-721.22,0.00016438,2]
[351070431,1738324244424,-500.0,0.00016438,2]
[351070432,1738324244433,-500.0,0.00016438,2]
[351070433,1738324244442,-500.0,0.00016438,2]
[351070434,1738324244454,-2525.83,0.00016438,2]
[351070435,1738324244464,-959.01,0.00016438,2]
[351070436,1738324244474,-500.0,0.00016438,2]
[351070437,1738324244484,-1040.27,0.00016438,2]
[351070438,1738324244496,-500.0,0.00016438,2]
[351070439,1738324244506,-274.01847068,0.00016438,2]
[351070440,1738324244515,-500.0,0.00016438,2]
[351070441,1738324244527,-500.0,0.00016438,2]
[351070442,1738324244538,-2875.98,0.00016438,2]
[351070443,1738324244548,-500.0,0.00016438,2]
[351070444,1738324244559,-500.0,0.00016438,2]
[351070445,1738324244568,-617.88,0.00016438,2]
[351070446,1738324244578,-1113.32,0.00016438,2]
[351070447,1738324244588,-500.0,0.00016438,2]
[351070448,1738324244597,-500.0,0.00016438,2]
[351070449,1738324244607,-5694.9,0.00016438,2]
[351070450,1738324244617,-500.0,0.00016438,2]
[351070451,1738324244626,-500.0,0.00016438,2]
[351070452,1738324244636,-1040.72,0.00016438,2]
[351070453,1738324244646,-500.0,0.00016438,2]
[351070454,1738324244655,-500.0,0.00016438,2]
[351070455,1738324244665,-500.0,0.00016438,2]
[351070456,1738324244674,-1058.53,0.00016438,2]
[351070457,1738324244683,-500.0,0.00016438,2]
[351070458,1738324244693,-1227.18,0.00016438,2]
[351070459,1738324244703,-555.18219077,0.00016438,2]
[351070460,1738324244712,-500.0,0.00016438,2]
[351070461,1738324244722,-948.13,0.00016438,2]
[351070462,1738324244731,-500.0,0.00016438,2]
[351070463,1738324244742,-926.1,0.00016438,2]
[351070464,1738324244752,-500.0,0.00016438,2]
[351070465,1738324244762,-3754.06,0.00016438,2]
[351070466,1738324244772,-500.0,0.00016438,2]
[351070467,1738324244781,-500.0,0.00016438,2]
[351070468,1738324244791,-500.0,0.00016438,2]
[351070469,1738324244802,-500.0,0.00016438,2]
[351070470,1738324244812,-544.72,0.00016438,2]
[351070471,1738324244821,-513.386484,0.00016438,2]
[351070472,1738324244830,-500.0,0.00016438,2]
[351070473,1738324244840,-500.0,0.00016438,2]
[351070474,1738324244849,-1099.32,0.00016438,2]
[351070475,1738324244858,-500.0,0.00016438,2]
[351070476,1738324244868,-500.0,0.00016438,2]
[351070477,1738324244878,-1733.44,0.00016438,2]
[351070478,1738324244887,-572.9,0.00016438,2]
[351070479,1738324244896,-2122.94,0.00016438,2]
[351070480,1738324244906,-500.0,0.00016438,2]
[351070481,1738324244916,-500.0,0.00016438,2]
[351070482,1738324244926,-594.99099551,0.00016438,2]
[351070483,1738324244936,-500.0,0.00016438,2]
[351070484,1738324244945,-500.0,0.00016438,2]
[351070485,1738324244955,-500.0,0.00016438,2]
[351070486,1738324244964,-999.67,0.00016438,2]
[351070487,1738324244974,-1048.57,0.00016438,2]
[351070488,1738324244984,-500.0,0.00016438,2]
[351070489,1738324244993,-1145.86,0.00016438,2]
[351070490,1738324245003,-804.81,0.00016438,2]
[351070491,1738324245013,-534.82,0.00016438,2]
[351070492,1738324245022,-2648.61,0.00016438,2]
[351070493,1738324245032,-1037.49,0.00016438,2]
[351070494,1738324245041,-500.0,0.00016438,2]
[351070495,1738324245050,-2396.97,0.00016438,2]
[351070496,1738324245059,-1402.68,0.00016438,2]
[351070497,1738324245068,-3204.6,0.00016438,2]
[351070498,1738324245078,-1040.29,0.00016438,2]
[351070499,1738324245088,-500.0,0.00016438,2]
[351070500,1738324245098,-2903.69,0.00016438,2]
[351070501,1738324245107,-6141.07706449,0.00016438,2]
[351070502,1738324245500,-1147.52293551,0.00016438,2]
[351070503,1738324245510,-500.0,0.00016438,2]
[351070504,1738324245519,-62.09668093,0.00016438,2]
[351070505,1738324245532,-455.49702906,0.00016438,2]
[351070506,1738324245541,-13.04895167,0.00016438,2]
[351070507,1738324245552,-486.95104833,0.00016438,2]
[351070508,1738324245562,-506.88780637,0.00016438,2]
[351070509,1738324245571,-500.0,0.00016438,2]
[351070510,1738324245580,-562.58,0.00016438,2]
[351070511,1738324245590,-587.79,0.00016438,2]
[351070512,1738324245599,-500.0,0.00016438,2]
[351070513,1738324245608,-2495.23,0.00016438,2]
[351070514,1738324245617,-515.14,0.00016438,2]
[351070515,1738324245627,-500.0,0.00016438,2]
[351070516,1738324245636,-1028.79,0.00016438,2]
[351070517,1738324245646,-2248.25,0.00016438,2]
[351070518,1738324245655,-2728.26,0.00016438,2]
[351070519,1738324245664,-154.135674,0.00016438,2]
[351070520,1738324245675,-500.0,0.00016438,2]
[351070522,1738324245684,-504.35522908,0.00016438,2]
[351070523,1738324245694,-366.94469213,0.00016438,2]
[351070524,1738324245703,-500.0,0.00016438,2]
[351070525,1738324245712,-846.48,0.00016438,2]
[351070526,1738324245722,-2792.79,0.00016438,2]
[351070527,1738324245731,-1342.18,0.00016438,2]
[351070528,1738324245740,-500.0,0.00016438,2]
[351070529,1738324245750,-500.0,0.00016438,2]
[351070530,1738324245759,-500.0,0.00016438,2]
[351070531,1738324245768,-500.0,0.00016438,2]
[351070532,1738324245846,-500.0,0.00016438,2]
[351070535,1738324245855,-1680.63,0.00016438,2]
[351070536,1738324245864,-500.0,0.00016438,2]
[351070537,1738324245873,-500.0,0.00016438,2]
[351070539,1738324245883,-500.0,0.00016438,2]
[351070540,1738324245892,-500.0,0.00016438,2]
[351070541,1738324245903,-461.01254722,0.00016438,2]
[351070542,1738324245913,-500.0,0.00016438,2]
[351070543,1738324245922,-843.34,0.00016438,2]
[351070544,1738324245934,-620.67,0.00016438,2]
[351070545,1738324245943,-500.0,0.00016438,2]
[351070546,1738324245953,-1248.18,0.00016438,2]
[351070547,1738324245962,-500.0,0.00016438,2]
[351070548,1738324245972,-500.0,0.00016438,2]
[351070549,1738324245981,-500.0,0.00016438,2]
[351070550,1738324245991,-506.27588098,0.00016438,2]
[351070551,1738324246000,-500.0,0.00016438,2]
[351070552,1738324246009,-1421.21,0.00016438,2]
[351070553,1738324246019,-1109.38,0.00016438,2]
[351070554,1738324246028,-6503.84,0.00016438,2]
[351070555,1738324246037,-500.0,0.00016438,2]
[351070556,1738324246047,-500.0,0.00016438,2]
[351070557,1738324246056,-500.0,0.00016438,2]
[351070558,1738324246066,-1665.65,0.00016438,2]
[351070559,1738324246075,-389.999951,0.00016438,2]
[351070560,1738324246084,-2053.62,0.00016438,2]
[351070561,1738324246094,-500.0,0.00016438,2]
[351070562,1738324246103,-720.26,0.00016438,2]
[351070563,1738324246112,-1885.24,0.00016438,2]
[351070564,1738324246121,-500.0,0.00016438,2]
[351070565,1738324246131,-500.0,0.00016438,2]
[351070566,1738324246141,-3146.24,0.00016438,2]
[351070567,1738324246150,-996.21,0.00016438,2]
[351070568,1738324246159,-500.0,0.00016438,2]
[351070569,1738324246169,-558.19,0.00016438,2]
[351070570,1738324246180,-500.0,0.00016438,2]
[351070571,1738324246189,-1284.37,0.00016438,2]
[351070572,1738324246199,-2333.73,0.00016438,2]
[351070573,1738324246208,-2084.37,0.00016438,2]
[351070574,1738324246217,-2854.98,0.00016438,2]
[351070575,1738324246227,-884.01,0.00016438,2]
[351070576,1738324246236,-1136.43,0.00016438,2]
[351070577,1738324246245,-151.219779,0.00016438,2]
[351070578,1738324246255,-500.0,0.00016438,2]
[351070579,1738324246265,-1871.77,0.00016438,2]
[351070580,1738324246275,-500.0,0.00016438,2]
[351070581,1738324246285,-1104.94,0.00016438,2]
[351070582,1738324246295,-500.0,0.00016438,2]
[351070583,1738324246307,-2946.69,0.00016438,2]
[351070584,1738324246317,-941.15,0.00016438,2]
[351070585,1738324246327,-1115.29,0.00016438,2]
[351070586,1738324246336,-500.0,0.00016438,2]
[351070587,1738324246346,-828.12,0.00016438,2]
[351070588,1738324246355,-500.0,0.00016438,2]
[351070589,1738324246365,-254.1093214,0.00016438,2]
[351070590,1738324246375,-500.0,0.00016438,2]
[351070591,1738324246385,-2224.33,0.00016438,2]
[351070592,1738324246395,-500.0,0.00016438,2]
[351070594,1738324246403,-3489.24,0.00016438,2]
[351070596,1738324246413,-746.73,0.00016438,2]
[351070598,1738324246422,-1806.93,0.00016438,2]
[351070600,1738324246433,-1077.54,0.00016438,2]
[351070601,1738324246443,-500.0,0.00016438,2]
[351070603,1738324246454,-1991.21,0.00016438,2]
[351070605,1738324246463,-760.46,0.00016438,2]
[351070607,1738324246472,-526.27,0.00016438,2]
[351070609,1738324246482,-753.74,0.00016438,2]
[351070611,1738324246491,-1089.84298887,0.00016438,2]
[351070614,1738324246510,-254.14701113,0.00016438,2]
[351070616,1738324246520,-500.0,0.00016438,2]
[351070618,1738324246529,-855.25,0.00016438,2]
[351070620,1738324246539,-1812.45,0.00016438,2]
[351070622,1738324246548,-1716.99,0.00016438,2]
[351070624,1738324246558,-500.0,0.00016438,2]